[Event "Titled Tuesday Blitz March 01 Late 2022"]
[White "Karttunen, Mika"]
[Black "Harvey, Marcus R"]
[WhiteFideId "502081"]
[BlackFideId "400092"]
[WhiteElo "2343"]
[BlackElo "2485"]
[Result "0-1"]
[Round "09"]
[TimeControl "180+1"]
[Date "2022.03.01"]
[WhiteClock "0:00:01"]
[BlackClock "0:00:08"]

1. d4 {[%clk 0:03:00]}  Nf6 {[%clk 0:02:59]} 2. c4 {[%clk 0:03:00]}  e6 {[%clk 0:03:00]} 3. g3 {[%clk 0:02:59]}  c5 {[%clk 0:02:58]} 4. Nf3 {[%clk 0:02:52]}  cxd4 {[%clk 0:02:58]} 5. Nxd4 {[%clk 0:02:52]}  d5 {[%clk 0:02:57]} 6. Bg2 {[%clk 0:02:35]}  e5 {[%clk 0:02:56]} 7. Nc2 {[%clk 0:02:31]}  d4 {[%clk 0:02:51]} 8. O-O {[%clk 0:02:26]}  Nc6 {[%clk 0:02:50]} 9. Bg5 {[%clk 0:02:07]}  Be6 {[%clk 0:02:45]} 10. Nd2 {[%clk 0:02:04]}  Be7 {[%clk 0:02:41]} 11. b4 {[%clk 0:01:58]}  O-O {[%clk 0:02:40]} 12. a3 {[%clk 0:01:46]}  Nd7 {[%clk 0:02:29]} 13. Bxe7 {[%clk 0:01:44]}  Qxe7 {[%clk 0:02:30]} 14. e3 {[%clk 0:01:33]}  d3 {[%clk 0:01:31]} 15. Ne1 {[%clk 0:01:30]}  Rfd8 {[%clk 0:01:30]} 16. Nxd3 {[%clk 0:01:16]}  Nb6 {[%clk 0:01:30]} 17. Nb2 {[%clk 0:00:46]}  Bxc4 {[%clk 0:01:23]} 18. Re1 {[%clk 0:00:46]}  Bd5 {[%clk 0:01:16]} 19. Bxd5 {[%clk 0:00:33]}  Rxd5 {[%clk 0:01:17]} 20. Qc2 {[%clk 0:00:33]}  Rad8 {[%clk 0:01:17]} 21. Rad1 {[%clk 0:00:29]}  h5 {[%clk 0:01:05]} 22. Ne4 {[%clk 0:00:22]}  a5 {[%clk 0:00:58]} 23. Rxd5 {[%clk 0:00:19]}  Rxd5 {[%clk 0:00:57]} 24. bxa5 {[%clk 0:00:18]}  Rxa5 {[%clk 0:00:57]} 25. Qb3 {[%clk 0:00:15]}  Ra6 {[%clk 0:00:40]} 26. a4 {[%clk 0:00:11]}  Qb4 {[%clk 0:00:39]} 27. Qxb4 {[%clk 0:00:10]}  Nxb4 {[%clk 0:00:40]} 28. Ra1 {[%clk 0:00:09]}  Nc6 {[%clk 0:00:29]} 29. Nc5 {[%clk 0:00:09]}  Ra7 {[%clk 0:00:29]} 30. h4 {[%clk 0:00:07]}  f6 {[%clk 0:00:25]} 31. Kg2 {[%clk 0:00:07]}  Kf7 {[%clk 0:00:22]} 32. a5 {[%clk 0:00:03]}  Nd5 {[%clk 0:00:16]} 33. Nc4 {[%clk 0:00:02]}  Ke7 {[%clk 0:00:11]} 34. Ra3 {[%clk 0:00:01]}  Ndb4 {[%clk 0:00:08]} 0-1


[Site "https://www.chess.com"]

[Event "Titled Tuesday Blitz March 01 Late 2022"]
[White "Kevlishvili, Robby"]
[Black "Rustemov, Alexander"]
[WhiteFideId "1040634"]
[BlackFideId "4119002"]
[WhiteElo "2584"]
[BlackElo "2782"]
[Result "1/2-1/2"]
[Round "09"]
[TimeControl "180+1"]
[Date "2022.03.01"]
[WhiteClock "0:00:20"]
[BlackClock "0:00:33"]

1. e4 {[%clk 0:03:00]}  e6 {[%clk 0:02:59]} 2. d4 {[%clk 0:02:59]}  d5 {[%clk 0:03:00]} 3. Nd2 {[%clk 0:03:00]}  dxe4 {[%clk 0:02:59]} 4. Nxe4 {[%clk 0:02:58]}  Bd7 {[%clk 0:03:00]} 5. Nf3 {[%clk 0:02:58]}  Bc6 {[%clk 0:03:00]} 6. Bd3 {[%clk 0:02:59]}  Nd7 {[%clk 0:03:00]} 7. Qe2 {[%clk 0:02:59]}  Ngf6 {[%clk 0:03:01]} 8. Ned2 {[%clk 0:02:58]}  Be7 {[%clk 0:03:00]} 9. O-O {[%clk 0:02:58]}  O-O {[%clk 0:03:00]} 10. c4 {[%clk 0:02:58]}  b6 {[%clk 0:02:59]} 11. b3 {[%clk 0:02:59]}  Bb7 {[%clk 0:03:00]} 12. Bb2 {[%clk 0:02:59]}  c5 {[%clk 0:03:00]} 13. Rad1 {[%clk 0:02:57]}  Re8 {[%clk 0:02:58]} 14. Rfe1 {[%clk 0:02:55]}  Qc7 {[%clk 0:02:58]} 15. Ne4 {[%clk 0:02:52]}  Nxe4 {[%clk 0:02:56]} 16. Bxe4 {[%clk 0:02:53]}  Bxe4 {[%clk 0:02:41]} 17. Qxe4 {[%clk 0:02:54]}  Rad8 {[%clk 0:02:39]} 18. d5 {[%clk 0:02:31]}  Nf6 {[%clk 0:02:24]} 19. Bxf6 {[%clk 0:02:10]}  Bxf6 {[%clk 0:02:24]} 20. g3 {[%clk 0:02:05]}  g6 {[%clk 0:02:18]} 21. Kg2 {[%clk 0:01:48]}  Re7 {[%clk 0:02:09]} 22. Qd3 {[%clk 0:01:13]}  Red7 {[%clk 0:02:03]} 23. Qe4 {[%clk 0:01:09]}  exd5 {[%clk 0:02:01]} 24. cxd5 {[%clk 0:01:06]}  Qb7 {[%clk 0:01:58]} 25. Qf4 {[%clk 0:00:59]}  Kg7 {[%clk 0:01:51]} 26. h4 {[%clk 0:00:37]}  Rxd5 {[%clk 0:01:50]} 27. Rxd5 {[%clk 0:00:36]}  Qxd5 {[%clk 0:01:49]} 28. h5 {[%clk 0:00:32]}  Qxh5 {[%clk 0:01:42]} 29. Rh1 {[%clk 0:00:32]}  Qd5 {[%clk 0:01:30]} 30. Qh6+ {[%clk 0:00:32]}  Kg8 {[%clk 0:01:30]} 31. Qxh7+ {[%clk 0:00:33]}  Kf8 {[%clk 0:01:31]} 32. Qh6+ {[%clk 0:00:33]}  Bg7 {[%clk 0:01:29]} 33. Qf4 {[%clk 0:00:29]}  Re8 {[%clk 0:01:20]} 34. Rh4 {[%clk 0:00:23]}  Kg8 {[%clk 0:01:15]} 35. Qc7 {[%clk 0:00:22]}  Qa8 {[%clk 0:00:51]} 36. Ra4 {[%clk 0:00:21]}  Rc8 {[%clk 0:00:35]} 37. Rxa7 {[%clk 0:00:20]}  Rxc7 {[%clk 0:00:34]} 38. Rxa8+ {[%clk 0:00:20]}  Bf8 {[%clk 0:00:35]} 39. Ne5 {[%clk 0:00:20]}  b5 {[%clk 0:00:33]} 1/2-1/2


[Site "https://www.chess.com"]

[Event "Titled Tuesday Blitz March 01 Late 2022"]
[White "Khabinets, Ivan"]
[Black "Iskusnyh, Sergei"]
[WhiteFideId "14115980"]
[BlackFideId "4120027"]
[WhiteElo "2523"]
[BlackElo "2651"]
[Result "0-1"]
[Round "09"]
[TimeControl "180+1"]
[Date "2022.03.02"]
[WhiteClock "0:00:02"]
[BlackClock "0:00:17"]

1. Nf3 {[%clk 0:03:00]}  d5 {[%clk 0:02:56]} 2. c4 {[%clk 0:03:00]}  c6 {[%clk 0:02:52]} 3. g3 {[%clk 0:02:59]}  Nf6 {[%clk 0:02:51]} 4. d4 {[%clk 0:02:59]}  Bf5 {[%clk 0:02:48]} 5. Nc3 {[%clk 0:02:59]}  e6 {[%clk 0:02:47]} 6. Nh4 {[%clk 0:02:59]}  dxc4 {[%clk 0:02:43]} 7. Nxf5 {[%clk 0:02:59]}  exf5 {[%clk 0:02:43]} 8. e3 {[%clk 0:03:00]}  Bd6 {[%clk 0:02:37]} 9. Bxc4 {[%clk 0:03:00]}  Nbd7 {[%clk 0:02:37]} 10. O-O {[%clk 0:02:59]}  O-O {[%clk 0:02:36]} 11. Qd3 {[%clk 0:02:58]}  Nb6 {[%clk 0:02:22]} 12. Bb3 {[%clk 0:02:57]}  Qd7 {[%clk 0:02:22]} 13. Rd1 {[%clk 0:02:57]}  h5 {[%clk 0:02:17]} 14. h4 {[%clk 0:02:54]}  Rfe8 {[%clk 0:02:14]} 15. Bd2 {[%clk 0:02:52]}  Rad8 {[%clk 0:02:13]} 16. Rac1 {[%clk 0:02:51]}  g6 {[%clk 0:02:07]} 17. Be1 {[%clk 0:02:43]}  Bb8 {[%clk 0:02:04]} 18. a4 {[%clk 0:02:27]}  a6 {[%clk 0:02:02]} 19. a5 {[%clk 0:02:26]}  Nbd5 {[%clk 0:02:01]} 20. Nxd5 {[%clk 0:02:26]}  Nxd5 {[%clk 0:02:00]} 21. Rc5 {[%clk 0:02:24]}  Bd6 {[%clk 0:01:44]} 22. Rc4 {[%clk 0:02:13]}  Re4 {[%clk 0:01:41]} 23. Bc2 {[%clk 0:02:04]}  Rde8 {[%clk 0:01:40]} 24. Bd2 {[%clk 0:02:02]}  Qe7 {[%clk 0:01:22]} 25. Qb3 {[%clk 0:01:57]}  Rg4 {[%clk 0:01:19]} 26. Be1 {[%clk 0:01:46]}  Bxg3 {[%clk 0:01:09]} 27. fxg3 {[%clk 0:01:38]}  Nxe3 {[%clk 0:01:07]} 28. Bf2 {[%clk 0:01:31]}  Qxh4 {[%clk 0:00:58]} 29. Rd2 {[%clk 0:00:30]}  Rxg3+ {[%clk 0:00:50]} 30. Bxg3 {[%clk 0:00:29]}  Qxg3+ {[%clk 0:00:51]} 31. Kh1 {[%clk 0:00:30]}  Qf3+ {[%clk 0:00:47]} 32. Kg1 {[%clk 0:00:29]}  Qf1+ {[%clk 0:00:45]} 33. Kh2 {[%clk 0:00:28]}  Nxc4 {[%clk 0:00:28]} 34. Rg2 {[%clk 0:00:18]}  Ne3 {[%clk 0:00:28]} 35. Rxg6+ {[%clk 0:00:09]}  Kh8 {[%clk 0:00:22]} 36. Qxf7 {[%clk 0:00:09]}  Ng4+ {[%clk 0:00:19]} 37. Kg3 {[%clk 0:00:04]}  Qf2+ {[%clk 0:00:16]} 38. Kh3 {[%clk 0:00:02]}  Qh2# {[%clk 0:00:17]} 0-1


[Site "https://www.chess.com"]

[Event "Titled Tuesday Blitz March 01 Late 2022"]
[White "Kim, Sergey"]
[Black "Mikhalsky, Vladimir"]
[WhiteFideId "13700570"]
[BlackFideId "14144352"]
[WhiteElo "2583"]
[BlackElo "2248"]
[Result "1-0"]
[Round "09"]
[TimeControl "180+1"]
[Date "2022.03.02"]
[WhiteClock "0:00:23"]
[BlackClock "0:00:35"]

1. d4 {[%clk 0:03:00]}  Nf6 {[%clk 0:02:58]} 2. c4 {[%clk 0:03:00]}  g6 {[%clk 0:02:58]} 3. Nc3 {[%clk 0:03:00]}  Bg7 {[%clk 0:02:59]} 4. e4 {[%clk 0:03:00]}  O-O {[%clk 0:02:59]} 5. Nge2 {[%clk 0:03:01]}  d6 {[%clk 0:02:59]} 6. Ng3 {[%clk 0:03:00]}  e5 {[%clk 0:02:58]} 7. d5 {[%clk 0:03:00]}  h5 {[%clk 0:02:56]} 8. Be2 {[%clk 0:02:58]}  h4 {[%clk 0:02:56]} 9. Nf1 {[%clk 0:02:58]}  h3 {[%clk 0:02:55]} 10. g4 {[%clk 0:02:57]}  Na6 {[%clk 0:02:51]} 11. Ng3 {[%clk 0:02:56]}  Nc5 {[%clk 0:02:50]} 12. b4 {[%clk 0:02:55]}  Ncd7 {[%clk 0:02:49]} 13. Bg5 {[%clk 0:02:53]}  a5 {[%clk 0:02:48]} 14. a3 {[%clk 0:02:53]}  Nb6 {[%clk 0:02:42]} 15. O-O {[%clk 0:02:47]}  Qe8 {[%clk 0:02:39]} 16. f3 {[%clk 0:02:44]}  Nh7 {[%clk 0:02:36]} 17. Be3 {[%clk 0:02:39]}  f5 {[%clk 0:02:25]} 18. gxf5 {[%clk 0:02:38]}  gxf5 {[%clk 0:02:24]} 19. exf5 {[%clk 0:02:37]}  Bxf5 {[%clk 0:02:23]} 20. Nxf5 {[%clk 0:02:29]}  Rxf5 {[%clk 0:02:23]} 21. Kh1 {[%clk 0:02:29]}  Kh8 {[%clk 0:02:22]} 22. c5 {[%clk 0:02:20]}  Nd7 {[%clk 0:02:16]} 23. cxd6 {[%clk 0:02:15]}  cxd6 {[%clk 0:02:15]} 24. Ne4 {[%clk 0:02:15]}  Qe7 {[%clk 0:02:11]} 25. Rg1 {[%clk 0:02:08]}  Ndf6 {[%clk 0:02:06]} 26. Ng3 {[%clk 0:02:06]}  Rh5 {[%clk 0:01:46]} 27. Nxh5 {[%clk 0:01:53]}  Nxh5 {[%clk 0:01:46]} 28. Rc1 {[%clk 0:01:46]}  axb4 {[%clk 0:01:45]} 29. axb4 {[%clk 0:01:45]}  Nf4 {[%clk 0:01:40]} 30. Bd3 {[%clk 0:01:33]}  Ng2 {[%clk 0:01:25]} 31. Bd2 {[%clk 0:01:29]}  Ng5 {[%clk 0:01:24]} 32. f4 {[%clk 0:01:22]}  exf4 {[%clk 0:01:16]} 33. Qh5+ {[%clk 0:01:20]}  Kg8 {[%clk 0:01:16]} 34. Rce1 {[%clk 0:01:05]}  Qf6 {[%clk 0:01:07]} 35. Re8+ {[%clk 0:00:55]}  Rxe8 {[%clk 0:01:06]} 36. Qxe8+ {[%clk 0:00:54]}  Bf8 {[%clk 0:01:00]} 37. Qh5 {[%clk 0:00:46]}  Be7 {[%clk 0:00:49]} 38. Rc1 {[%clk 0:00:41]}  Qf7 {[%clk 0:00:40]} 39. Rc8+ {[%clk 0:00:33]}  Kg7 {[%clk 0:00:36]} 40. Bc3+ {[%clk 0:00:26]}  Bf6 {[%clk 0:00:35]} 41. Qh8# {[%clk 0:00:23]} 1-0


[Site "https://www.chess.com"]

[Event "Titled Tuesday Blitz March 01 Late 2022"]
[White "Kopczynski, Michal"]
[Black "Yuan, Qingyu"]
[WhiteFideId "1124200"]
[BlackFideId "8609772"]
[WhiteElo "2235"]
[BlackElo "2359"]
[Result "1-0"]
[Round "09"]
[TimeControl "180+1"]
[Date "2022.03.01"]
[WhiteClock "0:01:06"]
[BlackClock "0:00:54"]

1. e4 {[%clk 0:03:00]}  c5 {[%clk 0:03:00]} 2. d4 {[%clk 0:03:01]}  cxd4 {[%clk 0:03:00]} 3. c3 {[%clk 0:03:01]}  dxc3 {[%clk 0:03:00]} 4. Nxc3 {[%clk 0:03:02]}  Nc6 {[%clk 0:03:01]} 5. f4 {[%clk 0:03:03]}  e6 {[%clk 0:02:55]} 6. Nf3 {[%clk 0:03:03]}  Bc5 {[%clk 0:02:48]} 7. Bd3 {[%clk 0:03:03]}  a6 {[%clk 0:02:42]} 8. Qe2 {[%clk 0:03:03]}  Nge7 {[%clk 0:02:37]} 9. Bd2 {[%clk 0:03:03]}  O-O {[%clk 0:02:31]} 10. O-O-O {[%clk 0:03:03]}  b5 {[%clk 0:02:24]} 11. e5 {[%clk 0:03:02]}  Bb7 {[%clk 0:02:03]} 12. Bxh7+ {[%clk 0:02:53]}  Kh8 {[%clk 0:01:39]} 13. Be4 {[%clk 0:02:41]}  g6 {[%clk 0:01:36]} 14. h4 {[%clk 0:02:39]}  Kg7 {[%clk 0:01:36]} 15. h5 {[%clk 0:02:36]}  Nf5 {[%clk 0:01:30]} 16. hxg6 {[%clk 0:02:30]}  Ng3 {[%clk 0:01:21]} 17. Rh7+ {[%clk 0:02:29]}  Kg8 {[%clk 0:01:19]} 18. Qe1 {[%clk 0:02:11]}  Nxe4 {[%clk 0:00:58]} 19. Qh1 {[%clk 0:01:20]}  fxg6 {[%clk 0:00:53]} 20. Rh8+ {[%clk 0:01:14]}  Kf7 {[%clk 0:00:53]} 21. Qh7+ {[%clk 0:01:12]}  Ke8 {[%clk 0:00:54]} 22. Qxg6+ {[%clk 0:01:10]}  Ke7 {[%clk 0:00:54]} 23. Rh7+ {[%clk 0:01:06]} 1-0


[Site "https://www.chess.com"]

[Event "Titled Tuesday Blitz March 01 Late 2022"]
[White "Ladan, Nicholas"]
[Black "Curtis, John"]
[WhiteFideId "30918855"]
[BlackFideId "3200256"]
[WhiteElo "2361"]
[BlackElo "2203"]
[Result "1-0"]
[Round "09"]
[TimeControl "180+1"]
[Date "2022.03.02"]
[WhiteClock "0:00:02"]
[BlackClock "0:00:02"]

1. d4 {[%clk 0:03:00]}  Nf6 {[%clk 0:02:57]} 2. Nc3 {[%clk 0:03:00]}  d5 {[%clk 0:02:55]} 3. Bf4 {[%clk 0:02:59]}  c6 {[%clk 0:02:52]} 4. e3 {[%clk 0:02:59]}  Bf5 {[%clk 0:02:47]} 5. Bd3 {[%clk 0:02:58]}  Bg6 {[%clk 0:02:46]} 6. Nf3 {[%clk 0:02:57]}  Nbd7 {[%clk 0:02:45]} 7. O-O {[%clk 0:02:56]}  e6 {[%clk 0:02:44]} 8. Re1 {[%clk 0:02:50]}  Bb4 {[%clk 0:02:41]} 9. a3 {[%clk 0:02:43]}  Be7 {[%clk 0:02:37]} 10. e4 {[%clk 0:02:35]}  dxe4 {[%clk 0:02:34]} 11. Nxe4 {[%clk 0:02:36]}  Nxe4 {[%clk 0:02:32]} 12. Bxe4 {[%clk 0:02:37]}  Bxe4 {[%clk 0:02:30]} 13. Rxe4 {[%clk 0:02:38]}  O-O {[%clk 0:02:27]} 14. Re1 {[%clk 0:02:33]}  Re8 {[%clk 0:02:23]} 15. Qd3 {[%clk 0:02:23]}  Qb6 {[%clk 0:02:11]} 16. Nd2 {[%clk 0:01:59]}  a6 {[%clk 0:02:05]} 17. Nc4 {[%clk 0:01:58]}  Qb5 {[%clk 0:02:01]} 18. a4 {[%clk 0:01:49]}  Qh5 {[%clk 0:01:46]} 19. Bd6 {[%clk 0:01:44]}  b5 {[%clk 0:01:41]} 20. Bxe7 {[%clk 0:01:35]}  bxc4 {[%clk 0:01:37]} 21. Qa3 {[%clk 0:01:34]}  Qf5 {[%clk 0:01:27]} 22. Qd6 {[%clk 0:01:25]}  Qd5 {[%clk 0:01:18]} 23. Rad1 {[%clk 0:01:11]}  Qxd6 {[%clk 0:01:15]} 24. Bxd6 {[%clk 0:01:10]}  Ra7 {[%clk 0:01:14]} 25. Re3 {[%clk 0:00:48]}  Rb7 {[%clk 0:01:11]} 26. Ba3 {[%clk 0:00:48]}  Nb6 {[%clk 0:01:03]} 27. a5 {[%clk 0:00:32]}  Nd5 {[%clk 0:01:02]} 28. Re2 {[%clk 0:00:21]}  Rb5 {[%clk 0:01:00]} 29. c3 {[%clk 0:00:14]}  Rxa5 {[%clk 0:00:58]} 30. Bc5 {[%clk 0:00:14]}  Rb8 {[%clk 0:00:52]} 31. g3 {[%clk 0:00:14]}  Ra2 {[%clk 0:00:49]} 32. Rdd2 {[%clk 0:00:14]}  a5 {[%clk 0:00:46]} 33. f4 {[%clk 0:00:14]}  g6 {[%clk 0:00:44]} 34. Kg2 {[%clk 0:00:12]}  a4 {[%clk 0:00:42]} 35. h4 {[%clk 0:00:10]}  h5 {[%clk 0:00:39]} 36. Kf3 {[%clk 0:00:09]}  Rb3 {[%clk 0:00:36]} 37. g4 {[%clk 0:00:08]}  a3 {[%clk 0:00:31]} 38. Bxa3 {[%clk 0:00:07]}  Nxc3 {[%clk 0:00:29]} 39. bxc3 {[%clk 0:00:05]}  Rxd2 {[%clk 0:00:26]} 40. Rxd2 {[%clk 0:00:04]}  Rxc3+ {[%clk 0:00:25]} 41. Ke4 {[%clk 0:00:04]}  Rxa3 {[%clk 0:00:23]} 42. gxh5 {[%clk 0:00:05]}  gxh5 {[%clk 0:00:22]} 43. Ke5 {[%clk 0:00:04]}  Kf8 {[%clk 0:00:11]} 44. f5 {[%clk 0:00:02]}  Ke7 {[%clk 0:00:05]} 45. f6+ {[%clk 0:00:02]}  Kd7 {[%clk 0:00:04]} 46. Rg2 {[%clk 0:00:02]}  Rf3 {[%clk 0:00:03]} 47. Rg7 {[%clk 0:00:01]}  Rf5+ {[%clk 0:00:02]} 48. Ke4 {[%clk 0:00:02]} 1-0


[Site "https://www.chess.com"]

[Event "Titled Tuesday Blitz March 01 Late 2022"]
[White "Landaw, Julian"]
[Black "Przybylski, Wojciech"]
[WhiteFideId "2023342"]
[BlackFideId "1117599"]
[WhiteElo "2312"]
[BlackElo "2133"]
[Result "1-0"]
[Round "09"]
[TimeControl "180+1"]
[Date "2022.03.02"]
[WhiteClock "0:00:03"]
[BlackClock "0:00:01"]

1. e4 {[%clk 0:03:00]}  e5 {[%clk 0:02:58]} 2. Nf3 {[%clk 0:03:01]}  Nc6 {[%clk 0:02:58]} 3. Bb5 {[%clk 0:03:01]}  Nf6 {[%clk 0:02:58]} 4. d3 {[%clk 0:03:01]}  Bc5 {[%clk 0:02:57]} 5. O-O {[%clk 0:03:01]}  O-O {[%clk 0:02:54]} 6. c3 {[%clk 0:02:56]}  Qe7 {[%clk 0:02:54]} 7. d4 {[%clk 0:02:54]}  exd4 {[%clk 0:02:34]} 8. cxd4 {[%clk 0:02:54]}  Bb6 {[%clk 0:02:35]} 9. e5 {[%clk 0:02:51]}  Nd5 {[%clk 0:02:30]} 10. Bc4 {[%clk 0:02:45]}  Ndb4 {[%clk 0:02:25]} 11. a3 {[%clk 0:01:57]}  Na6 {[%clk 0:02:21]} 12. b4 {[%clk 0:01:58]}  d6 {[%clk 0:02:08]} 13. Bg5 {[%clk 0:01:39]}  Qd7 {[%clk 0:02:08]} 14. Nc3 {[%clk 0:01:09]}  dxe5 {[%clk 0:01:41]} 15. dxe5 {[%clk 0:01:09]}  Qg4 {[%clk 0:01:40]} 16. Qb3 {[%clk 0:00:54]}  Nd4 {[%clk 0:01:15]} 17. Nxd4 {[%clk 0:00:54]}  Bxd4 {[%clk 0:01:14]} 18. Be7 {[%clk 0:00:49]}  Bxc3 {[%clk 0:00:55]} 19. Qxc3 {[%clk 0:00:13]}  Re8 {[%clk 0:00:54]} 20. Rad1 {[%clk 0:00:08]}  Be6 {[%clk 0:00:47]} 21. Rd4 {[%clk 0:00:05]}  Qf5 {[%clk 0:00:39]} 22. Bxe6 {[%clk 0:00:05]}  Qxe6 {[%clk 0:00:34]} 23. Bh4 {[%clk 0:00:06]}  Qxe5 {[%clk 0:00:26]} 24. Bg3 {[%clk 0:00:06]}  Qf6 {[%clk 0:00:24]} 25. Qd2 {[%clk 0:00:06]}  Rad8 {[%clk 0:00:21]} 26. Rxd8 {[%clk 0:00:06]}  Rxd8 {[%clk 0:00:20]} 27. Qe3 {[%clk 0:00:06]}  b6 {[%clk 0:00:12]} 28. Re1 {[%clk 0:00:06]}  h6 {[%clk 0:00:11]} 29. Qe2 {[%clk 0:00:03]}  Nb8 {[%clk 0:00:09]} 30. Bxc7 {[%clk 0:00:04]}  Rc8 {[%clk 0:00:09]} 31. Bxb8 {[%clk 0:00:04]}  Rxb8 {[%clk 0:00:10]} 32. Qe7 {[%clk 0:00:05]}  Qc3 {[%clk 0:00:08]} 33. g3 {[%clk 0:00:03]}  a5 {[%clk 0:00:06]} 34. bxa5 {[%clk 0:00:02]}  bxa5 {[%clk 0:00:07]} 35. Re3 {[%clk 0:00:02]}  Qc1+ {[%clk 0:00:06]} 36. Kg2 {[%clk 0:00:03]}  a4 {[%clk 0:00:07]} 37. Rf3 {[%clk 0:00:03]}  Qc4 {[%clk 0:00:06]} 38. h4 {[%clk 0:00:03]}  Qd5 {[%clk 0:00:06]} 39. Qe3 {[%clk 0:00:03]}  Rd8 {[%clk 0:00:05]} 40. Kh2 {[%clk 0:00:03]}  Kh7 {[%clk 0:00:05]} 41. Qf4 {[%clk 0:00:02]}  f6 {[%clk 0:00:04]} 42. Re3 {[%clk 0:00:03]}  Qd6 {[%clk 0:00:02]} 43. Qxa4 {[%clk 0:00:02]}  Qc5 {[%clk 0:00:01]} 44. Qe4+ {[%clk 0:00:03]} 1-0


[Site "https://www.chess.com"]

[Event "Titled Tuesday Blitz March 01 Late 2022"]
[White "Leenhouts, Koen"]
[Black "Steenbekkers, Franck"]
[WhiteFideId "1008439"]
[BlackFideId "1004220"]
[WhiteElo "2409"]
[BlackElo "2195"]
[Result "1-0"]
[Round "09"]
[TimeControl "180+1"]
[Date "2022.03.02"]
[WhiteClock "0:01:01"]
[BlackClock "0:00:37"]

1. e4 {[%clk 0:02:52]}  c5 {[%clk 0:02:58]} 2. Nf3 {[%clk 0:02:51]}  Nc6 {[%clk 0:02:57]} 3. Bb5 {[%clk 0:02:52]}  g6 {[%clk 0:02:55]} 4. O-O {[%clk 0:02:50]}  Bg7 {[%clk 0:02:54]} 5. Re1 {[%clk 0:02:50]}  Nf6 {[%clk 0:02:53]} 6. c3 {[%clk 0:02:51]}  O-O {[%clk 0:02:52]} 7. d4 {[%clk 0:02:50]}  d5 {[%clk 0:02:51]} 8. e5 {[%clk 0:02:49]}  Ne4 {[%clk 0:02:49]} 9. Be3 {[%clk 0:02:33]}  Qb6 {[%clk 0:02:44]} 10. Bxc6 {[%clk 0:02:31]}  bxc6 {[%clk 0:02:27]} 11. Qc1 {[%clk 0:02:30]}  Rb8 {[%clk 0:02:23]} 12. b3 {[%clk 0:02:27]}  Bg4 {[%clk 0:02:19]} 13. dxc5 {[%clk 0:02:22]}  Qc7 {[%clk 0:02:09]} 14. Bd4 {[%clk 0:02:09]}  Bxf3 {[%clk 0:02:04]} 15. gxf3 {[%clk 0:02:07]}  Bxe5 {[%clk 0:01:58]} 16. fxe4 {[%clk 0:02:06]}  Bxh2+ {[%clk 0:01:55]} 17. Kf1 {[%clk 0:02:04]}  dxe4 {[%clk 0:01:50]} 18. Rxe4 {[%clk 0:02:00]}  e5 {[%clk 0:01:48]} 19. Be3 {[%clk 0:01:55]}  f5 {[%clk 0:01:46]} 20. Rh4 {[%clk 0:01:54]}  e4 {[%clk 0:01:45]} 21. Bf4 {[%clk 0:01:50]}  Bxf4 {[%clk 0:01:41]} 22. Qxf4 {[%clk 0:01:51]}  Qg7 {[%clk 0:01:30]} 23. Qh6 {[%clk 0:01:47]}  g5 {[%clk 0:01:23]} 24. Qxg7+ {[%clk 0:01:45]}  Kxg7 {[%clk 0:01:22]} 25. Rh1 {[%clk 0:01:39]}  Rbd8 {[%clk 0:01:20]} 26. Ke2 {[%clk 0:01:38]}  Rd5 {[%clk 0:01:20]} 27. c4 {[%clk 0:01:34]}  Rxc5 {[%clk 0:01:17]} 28. Nc3 {[%clk 0:01:35]}  Re5 {[%clk 0:01:16]} 29. Rad1 {[%clk 0:01:33]}  Rf7 {[%clk 0:01:14]} 30. Rd6 {[%clk 0:01:32]}  f4 {[%clk 0:01:10]} 31. Rxc6 {[%clk 0:01:30]}  e3 {[%clk 0:01:09]} 32. f3 {[%clk 0:01:28]}  g4 {[%clk 0:01:08]} 33. Ne4 {[%clk 0:01:20]}  g3 {[%clk 0:00:54]} 34. Rh4 {[%clk 0:01:14]}  Rxe4 {[%clk 0:00:51]} 35. Rg4+ {[%clk 0:01:06]}  Kf8 {[%clk 0:00:47]} 36. fxe4 {[%clk 0:01:02]}  f3+ {[%clk 0:00:46]} 37. Kxe3 {[%clk 0:01:01]}  f2 {[%clk 0:00:42]} 38. Rc8+ {[%clk 0:01:00]}  Ke7 {[%clk 0:00:38]} 39. Rc7+ {[%clk 0:01:00]}  Ke6 {[%clk 0:00:37]} 40. Rxf7 {[%clk 0:01:01]} 1-0


[Site "https://www.chess.com"]

[Event "Titled Tuesday Blitz March 01 Late 2022"]
[White "Li, Ben"]
[Black "Golubev, Mikhail"]
[WhiteFideId "2089980"]
[BlackFideId "14100983"]
[WhiteElo "2267"]
[BlackElo "2374"]
[Result "1-0"]
[Round "09"]
[TimeControl "180+1"]
[Date "2022.03.01"]
[WhiteClock "0:00:57"]
[BlackClock "0:00:01"]

1. d4 {[%clk 0:03:00]}  Nf6 {[%clk 0:02:59]} 2. c4 {[%clk 0:02:59]}  g6 {[%clk 0:02:59]} 3. Nc3 {[%clk 0:02:49]}  Bg7 {[%clk 0:02:59]} 4. e4 {[%clk 0:02:49]}  d6 {[%clk 0:02:57]} 5. Nf3 {[%clk 0:02:50]}  O-O {[%clk 0:02:57]} 6. h3 {[%clk 0:02:50]}  Na6 {[%clk 0:02:54]} 7. Bg5 {[%clk 0:02:44]}  Qe8 {[%clk 0:02:38]} 8. Be2 {[%clk 0:02:43]}  e5 {[%clk 0:02:24]} 9. d5 {[%clk 0:02:42]}  Nc5 {[%clk 0:02:19]} 10. Nd2 {[%clk 0:02:40]}  a5 {[%clk 0:02:19]} 11. g4 {[%clk 0:02:36]}  c6 {[%clk 0:02:13]} 12. Be3 {[%clk 0:02:34]}  cxd5 {[%clk 0:02:04]} 13. cxd5 {[%clk 0:02:32]}  Bd7 {[%clk 0:01:52]} 14. a4 {[%clk 0:02:30]}  Qe7 {[%clk 0:01:40]} 15. g5 {[%clk 0:02:23]}  Nh5 {[%clk 0:01:37]} 16. Bxc5 {[%clk 0:02:22]}  dxc5 {[%clk 0:01:36]} 17. Bxh5 {[%clk 0:02:22]}  gxh5 {[%clk 0:01:36]} 18. Qxh5 {[%clk 0:02:23]}  f5 {[%clk 0:01:27]} 19. exf5 {[%clk 0:02:09]}  Bxf5 {[%clk 0:01:25]} 20. Nde4 {[%clk 0:02:09]}  c4 {[%clk 0:01:18]} 21. Qe2 {[%clk 0:02:08]}  Qb4 {[%clk 0:01:15]} 22. O-O {[%clk 0:01:59]}  h6 {[%clk 0:01:08]} 23. h4 {[%clk 0:01:53]}  hxg5 {[%clk 0:01:07]} 24. hxg5 {[%clk 0:01:54]}  Bg6 {[%clk 0:00:54]} 25. Kg2 {[%clk 0:01:49]}  Rf4 {[%clk 0:00:50]} 26. Rh1 {[%clk 0:01:49]}  Raf8 {[%clk 0:00:50]} 27. Rh3 {[%clk 0:01:37]}  Bf5 {[%clk 0:00:37]} 28. Rg3 {[%clk 0:01:32]}  Bg6 {[%clk 0:00:09]} 29. Rh1 {[%clk 0:01:11]}  Qb6 {[%clk 0:00:08]} 30. f3 {[%clk 0:01:04]}  R8f7 {[%clk 0:00:05]} 31. d6 {[%clk 0:01:03]}  Qd8 {[%clk 0:00:04]} 32. Rd1 {[%clk 0:01:02]}  Bf5 {[%clk 0:00:03]} 33. Nd5 {[%clk 0:00:57]}  Bxe4 {[%clk 0:00:03]} 34. fxe4 {[%clk 0:00:57]}  Rf2+ {[%clk 0:00:02]} 35. Qxf2 {[%clk 0:00:58]}  Rxf2+ {[%clk 0:00:02]} 36. Kxf2 {[%clk 0:00:59]}  Bf8 {[%clk 0:00:01]} 37. d7 {[%clk 0:00:57]}  Bc5+ {[%clk 0:00:01]} 38. Kg2 {[%clk 0:00:57]} 1-0


[Site "https://www.chess.com"]